bitfinex/quotes_SOLUSD_20250602
["timestamp","ask_amount","ask_price","bid_price","bid_amount"]
[1748882352239,34.15042547,152.59,152.55,23.51042547]
[1748882353922,34.15042547,152.59,152.56,6.55479811]
[1748882354137,3.87223671,152.6,152.56,30.06522358]
[1748882354335,10.62,152.61,152.59,23.51042547]
[1748882354702,10.62,152.61,152.58,23.51042547]
[1748882356527,10.62,152.61,152.59,6.5535094]
[1748882356732,10.62,152.61,152.59,30.06393487]
[1748882356936,39.0544175,152.65,152.6,23.51042547]
[1748882357232,42.78748169,152.65,152.61,23.51042547]
[1748882357419,42.78748169,152.65,152.62,23.51042547]
[1748882357924,42.78748169,152.65,152.59,30.80138291]
[1748882358134,39.0544175,152.65,152.61,23.51042547]
[1748882359022,39.0544175,152.65,152.62,6.5522212]
[1748882360730,62.56484297,152.65,152.62,6.5522212]
[1748882360933,66.29697965,152.65,152.62,6.5522212]
[1748882361232,62.56484297,152.65,152.62,6.5522212]
[1748882361611,62.56484297,152.65,152.61,6.55246087]
[1748882361612,23.51042547,152.64,152.61,6.55246087]
[1748882361812,23.51042547,152.63,152.61,6.55246087]
[1748882362112,23.51042547,152.64,152.61,6.55246087]
[1748882363341,23.51042547,152.64,152.6,6.55307994]
[1748882363648,27.24229026,152.64,152.6,6.55307994]
[1748882363937,23.51042547,152.63,152.6,6.55307994]
[1748882364713,34.13042547,152.63,152.6,6.55307994]
[1748882365830,23.51042547,152.62,152.58,30.06436438]
[1748882367143,23.51042547,152.6,152.56,6.55479811]
[1748882367338,23.51042547,152.6,152.56,30.06522358]
[1748882367528,23.65258704,152.61,152.56,30.06522358]
[1748882368231,23.51042547,152.61,152.56,30.06522358]
[1748882368813,23.51042547,152.61,152.56,46.45221886]
[1748882369720,23.51042547,152.61,152.57,23.51042547]
[1748882370561,27.24125226,152.62,152.58,22.9387862]
[1748882370847,14.35082679,152.63,152.61,23.51042547]
[1748882371135,185.4544175,152.65,152.62,25.08632547]
[1748882371136,39.0544175,152.65,152.62,25.08632547]
[1748882371311,39.0544175,152.65,152.63,23.51042547]
[1748882372150,39.0544175,152.65,152.62,25.08632547]
[1748882372322,39.0544175,152.65,152.62,1.5759]
[1748882372822,39.0544175,152.65,152.63,6.55179191]
[1748882374722,3.73105929,152.66,152.63,6.55179191]
[1748882375818,34.13042547,152.67,152.63,6.55179191]
[1748882376469,23.65258704,152.66,152.63,6.55179191]
[1748882377325,34.13042547,152.67,152.63,6.55179191]
[1748882377854,37.86111432,152.67,152.63,6.55179191]
[1748882379545,23.51042547,152.66,152.63,6.55179191]
[1748882380053,14.34964284,152.67,152.63,6.55179191]
[1748882380232,23.51042547,152.65,152.63,6.55179191]
[1748882380746,23.51042547,152.66,152.63,6.55179191]
[1748882380936,27.24006831,152.66,152.63,6.55179191]
[1748882381752,23.51042547,152.66,152.63,6.55179191]
[1748882381941,23.51042547,152.66,152.62,6.5522212]
[1748882382329,27.24006831,152.66,152.62,6.5522212]
[1748882382651,23.51042547,152.66,152.62,6.5522212]
[1748882383725,23.51042547,152.66,152.62,30.06264667]
[1748882383931,14.34894497,152.67,152.63,23.51042547]
[1748882384144,37.85937044,152.67,152.62,22.9327742]
[1748882384357,37.85937044,152.67,152.63,23.51042547]
[1748882384534,10.62,152.67,152.63,23.51042547]
[1748882384857,12.45318119,152.69,152.66,23.51042547]
[1748882385153,86.79938348,152.7,152.66,23.51042547]
[1748882385760,110.30980895,152.7,152.66,23.51042547]
[1748882387883,31.68980895,152.7,152.67,6.55007532]
[1748882388654,23.51042547,152.72,152.68,23.51042547]
[1748882388882,23.51042547,152.73,152.68,23.51042547]
[1748882389039,0.14216157,152.74,152.68,23.51042547]
[1748882389236,23.51042547,152.73,152.68,23.51042547]
[1748882389437,23.51042547,152.72,152.68,23.51042547]
[1748882390234,23.51042547,152.72,152.69,6.54921736]
[1748882390765,23.51042547,152.71,152.64,22.92904851]
[1748882390934,23.51042547,152.7,152.66,23.51042547]
[1748882391134,23.51042547,152.71,152.66,23.51042547]
[1748882391980,23.51042547,152.71,152.67,6.55007532]
[1748882392785,23.51042547,152.7,152.67,6.55007532]
[1748882393602,32.97427053,152.73,152.64,16.37768583]
[1748882393603,23.51042547,152.68,152.65,6.5509335]
[1748882393767,23.51042547,152.66,152.65,6.5509335]
[1748882393966,23.51042547,152.66,152.6,16.38262973]
[1748882394185,23.51042547,152.66,152.61,23.51042547]
[1748882395580,0.14216157,152.67,152.62,23.51042547]
[1748882395581,23.65258704,152.67,152.62,23.51042547]
[1748882395795,0.14216157,152.69,152.64,23.51042547]
[1748882395967,23.51042547,152.68,152.64,23.51042547]
[1748882396172,23.51042547,152.68,152.65,6.5509335]
[1748882398285,23.51042547,152.68,152.64,6.55136268]
[1748882399107,23.51042547,152.67,152.64,6.55136268]
[1748882400199,23.51042547,152.67,152.63,22.93120076]
[1748882400389,23.51042547,152.66,152.63,6.55179191]
[1748882400700,23.51042547,152.66,152.61,23.51042547]
[1748882400701,23.51042547,152.64,152.62,6.55220987]
[1748882401010,23.51042547,152.63,152.6,6.55307994]
[1748882401213,23.51042547,152.62,152.6,6.55307994]
[1748882401374,23.51042547,152.63,152.6,6.55307994]
[1748882401574,0.42648471,152.66,152.6,6.55307994]
[1748882401774,23.51042547,152.63,152.6,6.55307994]
[1748882402581,23.51042547,152.64,152.6,6.55307994]
[1748882402778,23.51042547,152.64,152.6,22.9357798]
[1748882403081,23.51042547,152.63,152.6,22.9357798]
[1748882403484,4.1507496,152.66,152.6,22.9357798]
[1748882403693,23.51042547,152.65,152.6,46.44620527]
[1748882404088,23.51042547,152.65,152.61,23.51042547]
[1748882404805,23.51042547,152.64,152.6,22.9357798]
[1748882405797,23.51042547,152.64,152.6,46.44620527]
[1748882406385,0.42648471,152.66,152.6,46.44620527]
[1748882406610,23.51042547,152.64,152.6,46.44620527]
[1748882406918,23.65258704,152.66,152.62,23.51042547]
[1748882407622,146.4,152.67,152.63,23.51042547]
[1748882409202,146.4,152.67,152.64,6.55136268]
[1748882409511,23.51042547,152.68,152.64,6.55136268]
[1748882410010,23.51042547,152.67,152.64,6.55136268]
[1748882410984,23.51042547,152.65,152.64,6.55136268]
[1748882411213,23.51042547,152.66,152.62,6.5522212]
[1748882412387,23.51042547,152.65,152.62,6.5522212]
[1748882414118,23.51042547,152.64,152.62,6.5522212]
[1748882415109,23.51042547,152.64,152.61,22.93416413]
[1748882417596,23.51042547,152.64,152.61,6.55265054]
[1748882418735,3.73256047,152.66,152.6,6.55307994]
[1748882419027,23.51042547,152.64,152.6,6.55307994]
[1748882419229,3.73256047,152.66,152.6,6.55307994]
[1748882419230,23.51042547,152.63,152.6,6.55307994]
[1748882421135,3.73256047,152.66,152.62,23.51042547]
[1748882421303,8.30105473,152.69,152.65,23.51042547]
[1748882421635,8.30105473,152.69,152.68,23.51042547]
[1748882421917,146.4,152.75,152.68,23.51042547]
[1748882421918,3.73557953,152.74,152.69,6.5475]
[1748882422094,23.51042547,152.75,152.69,6.5475]
[1748882422095,26.0,152.75,152.72,23.51042547]
[1748882422291,49.51042547,152.75,152.71,23.51042547]
[1748882422611,23.51042547,152.74,152.69,30.05792547]
[1748882423321,23.51042547,152.74,152.7,6.54878847]
[1748882423696,23.51042547,152.73,152.7,6.54878847]
[1748882424318,26.0,152.75,152.7,6.54878847]
[1748882424319,23.51042547,152.74,152.7,6.54878847]
[1748882424929,49.51042547,152.75,152.7,46.43118512]
[1748882425444,49.51042547,152.75,152.7,30.05921394]
[1748882425624,0.14216157,152.73,152.69,6.5475]
[1748882425921,23.65258704,152.73,152.69,6.54885066]
[1748882426809,23.65258704,152.73,152.69,30.05927613]
[1748882427122,0.28432314,152.74,152.69,46.43231955]
[1748882427123,23.51042547,152.74,152.69,46.43231955]
[1748882427303,23.51042547,152.74,152.71,6.54835963]
[1748882427916,26.0,152.75,152.71,30.0587851]
[1748882428133,26.0,152.77,152.73,23.51042547]
[1748882428300,49.51042547,152.77,152.73,23.51042547]
[1748882428502,18.64964886,152.76,152.69,6.54905093]
[1748882428720,23.51042547,152.7,152.63,6.55179191]
[1748882428915,23.51042547,152.67,152.63,30.06221738]
[1748882429243,23.51042547,152.68,152.63,30.06221738]
[1748882429412,23.51042547,152.67,152.63,30.06221738]
[1748882429615,23.51042547,152.68,152.63,30.06221738]
[1748882431042,23.51042547,152.66,152.63,6.55179191]
[1748882431214,23.51042547,152.65,152.63,6.55179191]
[1748882431553,26.14216157,152.69,152.64,23.51042547]
[1748882431716,49.51042547,152.68,152.64,23.51042547]
[1748882432114,49.51042547,152.68,152.63,30.06221738]
[1748882432616,23.51042547,152.67,152.63,6.55179191]
[1748882433651,26.0,152.68,152.63,6.55179191]
[1748882433652,23.51042547,152.66,152.63,6.55179191]
[1748882435927,23.51042547,152.64,152.62,6.55212596]
[1748882436133,32.55018813,152.67,152.62,6.55212596]
[1748882436134,23.51042547,152.63,152.62,6.55212596]
[1748882436924,23.51042547,152.63,152.59,6.5535094]
[1748882437249,23.51042547,152.6,152.57,6.55436848]
[1748882437443,23.51042547,152.58,152.57,6.55436848]
[1748882437942,23.51042547,152.58,152.56,6.55463324]
[1748882438125,6.55260219,152.62,152.56,6.55463324]
[1748882438126,23.51042547,152.57,152.56,6.55463324]
[1748882438941,23.51042547,152.57,152.55,6.55522779]
[1748882439330,39.05589109,152.58,152.55,6.55522779]
[1748882439752,39.05589109,152.57,152.55,6.55522779]
[1748882441054,0.42648471,152.61,152.55,6.55522779]
[1748882441055,39.05589109,152.58,152.55,6.55522779]
[1748882441853,39.05589109,152.58,152.53,55.44534723]
[1748882441854,39.05589109,152.56,152.53,6.55602766]
[1748882442024,39.05589109,152.54,152.53,6.55602766]
[1748882442851,39.05589109,152.54,152.51,6.55694708]
[1748882444650,0.42648471,152.58,152.51,22.94931479]
[1748882444848,39.05589109,152.55,152.51,62.00520588]
[1748882447734,39.05589109,152.55,152.51,22.94931479]
[1748882448754,39.05589109,152.55,152.51,62.00520588]
[1748882450655,146.4,152.6,152.54,39.05589109]
[1748882450851,39.05589109,152.6,152.55,39.05589109]
[1748882451362,39.05589109,152.59,152.54,6.1625]
[1748882451550,0.42648471,152.61,152.51,67.59896365]
[1748882451551,39.05589109,152.57,152.53,39.05589109]
[1748882452248,39.05589109,152.57,152.52,39.05589109]
[1748882452750,39.05589109,152.57,152.53,6.55608732]
[1748882453137,0.14216157,152.59,152.53,6.55608732]
[1748882453341,0.14216157,152.6,152.53,45.61197841]
[1748882453564,0.14216157,152.6,152.54,39.05589109]
[1748882453767,39.05589109,152.58,152.53,22.94630563]
[1748882453955,39.05589109,152.58,152.53,62.00219672]
[1748882454753,39.05589109,152.57,152.53,62.00219672]
[1748882454947,39.05589109,152.56,152.53,6.55608732]
[1748882455443,39.05589109,152.54,152.51,6.55694708]
[1748882456550,39.05589109,152.56,152.51,45.61283817]
[1748882457563,39.05589109,152.56,152.52,39.05589109]
[1748882457764,39.05589109,152.57,152.52,39.05589109]
[1748882458274,39.05589109,152.57,152.53,39.05589109]
[1748882458565,39.05589109,152.57,152.54,6.55565753]
[1748882459466,23.43419224,152.57,152.54,6.55565753]
[1748882460165,26.0,152.58,152.54,6.55565753]
[1748882460344,23.43419224,152.57,152.54,6.55565753]
[1748882460745,23.43419224,152.55,152.53,6.55608732]
[1748882460959,23.43419224,152.55,152.5,8.1611]
[1748882461158,23.43419224,152.55,152.46,7.8931]
[1748882461159,23.43419224,152.51,152.46,7.8931]
[1748882461359,26.28432314,152.55,152.46,7.8931]
[1748882461360,23.43419224,152.49,152.46,7.8931]
[1748882461669,23.43419224,152.49,152.47,6.55866727]
[1748882461842,23.43419224,152.48,152.45,6.55952771]
[1748882462473,23.43419224,152.46,152.42,8.0152]
[1748882462767,23.43419224,152.43,152.4,6.56167979]
[1748882462996,26.0,152.47,152.4,6.56167979]
[1748882462997,23.43419224,152.42,152.4,6.56167979]
[1748882463185,26.0,152.48,152.4,22.96587926]
[1748882463353,23.43419224,152.45,152.4,46.4000715]
[1748882463548,23.43419224,152.44,152.4,46.4000715]
[1748882464085,23.43419224,152.44,152.4,22.96587926]
[1748882464454,49.86067695,152.48,152.4,22.96587926]
[1748882464455,23.43419224,152.43,152.4,6.56167979]
[1748882464663,23.43419224,152.42,152.4,6.56167979]
[1748882465167,23.43419224,152.44,152.4,6.56167979]
[1748882465481,39.12782679,152.44,152.4,6.56167979]
[1748882465679,39.12782679,152.43,152.4,6.56167979]
[1748882465847,39.12782679,152.43,152.4,22.96587926]
[1748882466043,39.12782679,152.44,152.4,22.96587926]
[1748882466247,26.0,152.46,152.4,62.09370605]
[1748882466553,0.14216157,152.49,152.43,39.12782679]
[1748882466762,39.12782679,152.48,152.43,39.12782679]
[1748882466962,166.5965659,152.51,152.4,55.77427821]
[1748882466963,203.82046955,152.51,152.46,39.12782679]
[1748882467280,203.82046955,152.51,152.47,39.12782679]
[1748882467281,18.29264276,152.51,152.47,39.12782679]
[1748882467987,18.29264276,152.51,152.49,39.12782679]
[1748882468872,18.29264276,152.51,152.48,39.12782679]
[1748882469281,18.29264276,152.51,152.47,22.95533546]
[1748882469282,18.29264276,152.51,152.49,39.12782679]
[1748882471060,18.29264276,152.51,152.5,6.55737704]
[1748882471264,57.42046955,152.51,152.5,6.55737704]
[1748882471886,18.29264276,152.51,152.5,6.55737704]
[1748882472184,57.42046955,152.51,152.5,6.55737704]
[1748882472382,18.29264276,152.51,152.5,6.55737704]
[1748882473065,18.29264276,152.51,152.48,45.68606393]
[1748882473482,18.29264276,152.51,152.48,62.08165679]
[1748882473803,18.29264276,152.51,152.49,39.12782679]
[1748882473968,18.29264276,152.51,152.5,39.12782679]
[1748882475176,18.29264276,152.51,152.5,45.68520383]
[1748882476902,172.82648471,152.58,152.5,119.88858055]
[1748882476903,39.12782679,152.58,152.5,119.88858055]
[1748882477204,39.12782679,152.58,152.54,6.55565753]
[1748882477776,39.12782679,152.59,152.54,62.07262815]
[1748882478090,146.4,152.62,152.56,39.12782679]
[1748882478091,65.12782679,152.6,152.56,39.12782679]
[1748882478598,39.12782679,152.59,152.55,39.12782679]
[1748882478804,39.12782679,152.59,152.54,62.07262815]
[1748882479018,39.12782679,152.58,152.54,6.55565753]
[1748882479183,39.12782679,152.55,152.5,6.55737704]
[1748882479386,39.12782679,152.53,152.5,6.55737704]
[1748882480278,39.12782679,152.54,152.5,22.95081966]
[1748882480503,39.12782679,152.54,152.5,62.07864645]
[1748882481288,39.12782679,152.53,152.5,6.55737704]
[1748882482501,39.12782679,152.54,152.5,6.55737704]
[1748882482882,39.12782679,152.54,152.5,62.07864645]
[1748882483274,39.12782679,152.53,152.5,22.95081966]
[1748882484077,39.12782679,152.54,152.5,62.07864645]
[1748882485001,39.12782679,152.54,152.5,22.95081966]
[1748882485200,39.12782679,152.54,152.5,62.07864645]
[1748882485406,65.12782679,152.55,152.5,62.07864645]
[1748882485589,65.12782679,152.55,152.51,39.12782679]
[1748882485904,39.12782679,152.55,152.51,39.12782679]
[1748882486477,65.12782679,152.57,152.53,39.12782679]
[1748882486682,171.7595937,152.63,152.56,39.12782679]
[1748882486982,39.12782679,152.61,152.56,39.12782679]
[1748882487201,39.12782679,152.61,152.57,6.55436848]
[1748882487911,159.22434197,152.63,152.58,39.12782679]
[1748882488101,198.35216876,152.63,152.58,39.12782679]
[1748882488402,224.35216876,152.63,152.58,39.12782679]
[1748882488584,39.12782679,152.62,152.58,39.12782679]
[1748882488980,39.12782679,152.62,152.57,62.06811648]
[1748882489193,39.12782679,152.61,152.57,62.06811648]
[1748882490201,39.12782679,152.61,152.57,6.55436848]
[1748882490383,39.12782679,152.6,152.57,6.55436848]
[1748882490788,39.12782679,152.61,152.57,6.55436848]
[1748882491123,39.12782679,152.61,152.57,45.68219527]
[1748882491421,39.12782679,152.6,152.56,39.12782679]
[1748882491905,39.12782679,152.61,152.56,39.12782679]
[1748882492422,39.12782679,152.61,152.53,55.7250749]
[1748882492423,39.12782679,152.57,152.53,6.55608732]
[1748882492585,39.12782679,152.56,152.53,6.55608732]
[1748882492785,39.12782679,152.57,152.53,6.55608732]
[1748882493288,39.12782679,152.56,152.53,6.55608732]
[1748882494108,39.12782679,152.57,152.53,62.07413242]
[1748882494314,39.12782679,152.57,152.53,22.94630563]
[1748882495296,39.12782679,152.56,152.53,6.55608732]
[1748882495799,6.98013843,152.59,152.53,6.55608732]
[1748882495800,39.12782679,152.55,152.53,6.55608732]
[1748882496419,39.12782679,152.54,152.5,55.5203058]
[1748882497122,39.12782679,152.53,152.51,6.55694708]
[1748882497607,6.55417241,152.58,152.5,62.07864645]
[1748882497608,65.12782679,152.55,152.5,62.07864645]
[1748882498279,39.12782679,152.54,152.5,22.95081966]
[1748882499302,39.12782679,152.53,152.5,6.55737704]
[1748882499812,39.12782679,152.51,152.48,6.55806182]
[1748882500109,39.12782679,152.5,152.48,6.55806182]
[1748882500313,39.12782679,152.51,152.48,6.55806182]
[1748882502595,39.12782679,152.52,152.48,6.55806182]
[1748882503094,39.12782679,152.52,152.48,45.68588861]
[1748882503407,26.42648471,152.55,152.49,39.12782679]
[1748882503408,39.12782679,152.54,152.49,39.12782679]
[1748882503619,39.12782679,152.53,152.48,39.12782679]
[1748882504317,26.14216157,152.55,152.48,39.12782679]
[1748882504318,39.12782679,152.52,152.48,39.12782679]
[1748882504524,39.12782679,152.52,152.47,39.12782679]
[1748882504901,39.12782679,152.52,152.48,39.12782679]
[1748882505613,26.14216157,152.55,152.5,45.68520383]
[1748882505614,39.12782679,152.55,152.5,45.68520383]
[1748882505827,42.84233778,152.56,152.52,39.12782679]
[1748882505993,39.12782679,152.56,152.52,39.12782679]
[1748882506423,39.12782679,152.57,152.52,39.12782679]
[1748882506892,39.12782679,152.56,152.52,39.12782679]
[1748882507095,39.12782679,152.56,152.51,39.12782679]
[1748882507624,39.12782679,152.56,152.52,6.55651717]
[1748882510014,39.12782679,152.56,152.52,22.94781011]
[1748882510731,39.12782679,152.56,152.52,6.55651717]
[1748882510896,39.12782679,152.55,152.52,6.55651717]
[1748882511315,39.12782679,152.56,152.52,6.55651717]
[1748882514637,3.72959399,152.58,152.52,62.0756369]
[1748882514937,39.12782679,152.58,152.54,39.12782679]
[1748882515310,23.43154567,152.58,152.54,23.43154567]
[1748882516036,49.43154567,152.61,152.56,23.43154567]
[1748882516234,23.43154567,152.59,152.55,23.43154567]
[1748882516440,26.0,152.6,152.52,22.94781011]
[1748882516441,23.43154567,152.57,152.52,22.94781011]
[1748882516636,23.43154567,152.57,152.53,23.43154567]
[1748882517438,0.14216157,152.59,152.53,23.43154567]
[1748882517614,23.43154567,152.58,152.53,23.43154567]
[1748882518025,23.43154567,152.57,152.54,6.55565753]
[1748882518339,23.43154567,152.55,152.52,6.556359]
[1748882518512,23.43154567,152.54,152.52,6.556359]
[1748882519312,23.43154567,152.53,152.5,6.2875]
[1748882519513,23.43154567,152.51,152.47,24.63266855]
[1748882519745,23.43154567,152.51,152.47,48.06421422]
[1748882520419,23.43154567,152.52,152.48,23.43154567]
[1748882520935,23.43154567,152.51,152.48,6.55823714]
[1748882521305,39.0922165,152.51,152.48,6.55823714]
[1748882522726,26.0,152.54,152.48,6.55823714]
[1748882522727,39.0922165,152.52,152.48,6.55823714]
[1748882523338,39.0922165,152.51,152.48,6.55823714]
[1748882524244,39.0922165,152.5,152.47,6.55856234]
[1748882524441,39.0922165,152.49,152.47,6.55856234]
[1748882524836,39.0922165,152.5,152.47,6.55856234]
[1748882525225,0.14216157,152.51,152.47,6.55856234]
[1748882525226,39.0922165,152.48,152.47,6.55856234]
[1748882526234,39.0922165,152.48,152.45,6.55952771]
[1748882526438,39.0922165,152.47,152.44,6.55986961]
[1748882526634,39.0922165,152.45,152.4,6.56167979]
[1748882526819,39.0922165,152.45,152.41,39.0922165]
[1748882527018,3.7276867,152.47,152.4,22.96587926]
[1748882527214,3.7276867,152.47,152.46,39.0922165]
[1748882527432,65.0922165,152.51,152.46,39.0922165]
[1748882528551,65.0922165,152.51,152.47,6.55866727]
[1748882528839,39.0922165,152.51,152.47,6.55866727]
[1748882530444,65.0922165,152.53,152.48,39.0922165]
[1748882530649,39.0922165,152.54,152.5,39.0922165]
[1748882530838,39.0922165,152.55,152.5,39.0922165]
[1748882531022,39.0922165,152.56,152.51,39.0922165]
[1748882531543,39.0922165,152.55,152.51,39.0922165]
[1748882531744,39.0922165,152.55,152.5,39.0922165]
[1748882532533,39.0922165,152.55,152.51,6.55694708]
[1748882534231,39.0922165,152.55,152.51,22.94931479]
[1748882534634,39.23437807,152.56,152.51,62.04153129]
[1748882534940,26.0,152.57,152.53,39.0922165]
[1748882534941,39.0922165,152.57,152.53,39.0922165]
[1748882535335,39.0922165,152.6,152.52,1.5977]
[1748882535532,39.0922165,152.58,152.54,39.0922165]
[1748882535752,26.0,152.6,152.53,39.0922165]
[1748882535753,39.0922165,152.57,152.53,39.0922165]
[1748882535926,39.0922165,152.56,152.52,1.5977]
[1748882536127,39.0922165,152.56,152.52,40.6899165]
[1748882537144,39.0922165,152.57,152.53,62.03852213]
[1748882537950,65.0922165,152.58,152.53,22.94630563]
[1748882538155,39.0922165,152.59,152.55,39.0922165]
[1748882538456,26.0,152.59,152.56,39.0922165]
[1748882538824,65.0922165,152.59,152.53,22.94630563]
[1748882539057,65.0922165,152.59,152.56,6.55479811]
[1748882543336,26.0,152.59,152.56,6.55479811]
[1748882543746,23.57298717,152.61,152.56,29.98562371]
[1748882543947,49.57298717,152.61,152.56,29.98562371]
[1748882544640,23.4308256,152.6,152.56,6.55479811]
[1748882545037,23.4308256,152.59,152.55,23.4308256]
[1748882545238,23.4308256,152.58,152.55,6.55507022]
[1748882545666,23.4308256,152.57,152.54,6.55548226]
[1748882545846,23.4308256,152.57,152.53,6.55608732]
[1748882546048,6.83780286,152.6,152.53,6.55608732]
[1748882546049,23.4308256,152.56,152.53,6.55608732]
[1748882546239,0.14216157,152.59,152.53,6.55608732]
[1748882546240,23.4308256,152.57,152.53,6.55608732]
[1748882546944,23.4308256,152.56,152.53,6.55608732]
[1748882547152,23.4308256,152.55,152.53,6.55608732]
[1748882547349,23.4308256,152.55,152.48,1.5135]
[1748882547350,23.4308256,152.54,152.52,6.55634729]
[1748882547572,23.4308256,152.53,152.52,6.55634729]
[1748882547951,23.4308256,152.53,152.5,6.55737704]
[1748882548345,23.4308256,152.54,152.5,6.55737704]
[1748882548676,23.4308256,152.54,152.5,29.98820264]
[1748882548856,23.4308256,152.55,152.5,29.98820264]
[1748882549945,23.4308256,152.55,152.51,23.4308256]
[1748882550595,23.4308256,152.54,152.5,23.4308256]
[1748882550739,23.4308256,152.54,152.49,46.38315033]
[1748882551449,23.4308256,152.54,152.5,23.4308256]
[1748882551645,23.4308256,152.55,152.5,23.4308256]
[1748882551969,23.4308256,152.55,152.51,23.4308256]
[1748882552158,23.4308256,152.55,152.52,6.55651717]
[1748882552366,23.4308256,152.56,152.52,6.55651717]
[1748882552549,49.4308256,152.58,152.53,23.4308256]
[1748882552748,26.0,152.57,152.54,23.4308256]
[1748882552952,26.0,152.57,152.53,23.4308256]
[1748882553169,23.4308256,152.58,152.53,23.4308256]
[1748882553559,26.0,152.57,152.53,23.4308256]
[1748882554141,26.0,152.57,152.54,6.55565753]
[1748882554880,49.4308256,152.57,152.54,6.55565753]
[1748882556082,23.4308256,152.56,152.54,6.55565753]
[1748882556264,23.4308256,152.56,152.53,6.55608732]
[1748882557104,26.0,152.57,152.53,6.55608732]
[1748882557406,49.4308256,152.57,152.53,6.55608732]
[1748882562178,26.0,152.57,152.53,29.98691292]
[1748882562375,26.0,152.57,152.54,23.4308256]
[1748882562575,23.4308256,152.59,152.54,23.4308256]
[1748882562576,49.4308256,152.59,152.54,23.4308256]
[1748882562775,23.4308256,152.58,152.53,46.37713123]
[1748882563280,23.4308256,152.58,152.54,23.4308256]
[1748882563475,49.4308256,152.59,152.54,23.4308256]
[1748882563671,23.4308256,152.58,152.53,46.37713123]
[1748882564569,49.4308256,152.59,152.54,23.4308256]
[1748882564771,49.4308256,152.59,152.55,23.4308256]
[1748882565505,27.15551391,152.61,152.57,23.4308256]
[1748882565698,26.0,152.61,152.58,23.4308256]
[1748882566006,8.38104265,152.62,152.58,23.4308256]
[1748882566190,26.0,152.6,152.59,6.5535094]
[1748882566505,8.38104265,152.62,152.59,29.984335]
[1748882566506,30.65635434,152.62,152.59,29.984335]
[1748882567004,30.65635434,152.62,152.59,6.5535094]
[1748882567399,54.08717994,152.62,152.59,36.5535094]
[1748882568975,30.65635434,152.62,152.59,6.5535094]
[1748882569175,54.08717994,152.62,152.59,6.5535094]
[1748882569377,30.65635434,152.62,152.59,6.5535094]
[1748882569679,54.08717994,152.62,152.59,6.5535094]
[1748882570494,54.08717994,152.62,152.58,6.55393891]
[1748882571687,23.4308256,152.61,152.58,6.55393891]
[1748882572005,49.4308256,152.59,152.55,23.4308256]
[1748882572202,23.4308256,152.57,152.54,8.08927083]
[1748882572507,23.4308256,152.58,152.54,8.08927083]
[1748882572809,23.4308256,152.58,152.54,31.52009643]
[1748882573206,26.0,152.59,152.55,23.4308256]
[1748882573413,49.4308256,152.59,152.55,23.4308256]
[1748882574785,49.4308256,152.59,152.56,6.55479811]
[1748882575643,3.73118737,152.6,152.58,23.4308256]
[1748882575905,34.38754171,152.62,152.58,23.4308256]
[1748882577212,34.38754171,152.62,152.59,6.5535094]
[1748882578291,54.08717994,152.62,152.59,6.5535094]
[1748882579310,54.08717994,152.62,152.59,29.984335]
[1748882579311,30.65635434,152.62,152.59,29.984335]
[1748882579518,30.65635434,152.62,152.59,46.36810851]
[1748882579818,4.65635434,152.62,152.6,23.4308256]
[1748882580021,8.39321066,152.62,152.6,23.4308256]
[1748882580397,8.39321066,152.62,152.61,6.55265054]
[1748882580599,31.82403626,152.62,152.6,6.55294672]
[1748882581204,28.08717994,152.62,152.6,6.55294672]
[1748882581801,28.08717994,152.62,152.59,6.5535094]
[1748882581999,4.65635434,152.62,152.59,29.984335]
[1748882582200,4.65635434,152.62,152.59,46.36810851]
[1748882584118,4.65635434,152.62,152.6,23.4308256]
[1748882585000,4.65635434,152.62,152.61,23.4308256]
[1748882585299,4.65635434,152.62,152.61,42.08047446]
[1748882585605,8.4042356,152.7,152.62,18.64964886]
[1748882585908,3.73522957,152.72,152.69,23.4308256]
[1748882586112,13.93459744,152.73,152.7,23.4308256]
[1748882586321,13.93459744,152.73,152.69,23.4308256]
[1748882586322,10.19943019,152.73,152.69,23.4308256]
[1748882587123,33.63025579,152.73,152.69,23.4308256]
[1748882587623,33.63025579,152.73,152.69,29.97979158]
[1748882588696,23.4308256,152.72,152.69,6.54896598]
[1748882588906,23.4308256,152.7,152.65,23.4308256]
[1748882589103,0.14216157,152.71,152.63,18.04321008]
[1748882589104,23.57298717,152.71,152.66,23.4308256]
[1748882589524,0.14216157,152.71,152.67,23.4308256]
[1748882589704,0.14216157,152.71,152.68,6.54964631]
[1748882589911,23.57298717,152.71,152.68,6.54964631]
[1748882590226,0.14216157,152.71,152.68,6.54964631]
[1748882590406,23.4308256,152.7,152.67,6.54989249]
[1748882590609,23.4308256,152.7,152.66,6.55035322]
[1748882593516,23.4308256,152.7,152.66,29.98117882]
[1748882593704,49.57298717,152.71,152.66,6.55035322]
[1748882594026,23.4308256,152.7,152.66,29.98117882]
[1748882595024,23.4308256,152.69,152.65,6.55083815]
[1748882595216,23.4308256,152.68,152.65,6.55083815]
[1748882595398,23.4308256,152.69,152.65,6.55083815]
[1748882596408,23.4308256,152.68,152.65,6.55083815]
[1748882597831,23.4308256,152.67,152.64,6.55136268]
[1748882598161,26.14216157,152.69,152.64,29.98218828]